bitfinex/quotes_ETHUSD_20250909
["timestamp","ask_amount","ask_price","bid_price","bid_amount"]
[1757423188906,0.02420001,4331.8,4331.7,10.76484996]
[1757423189209,0.02420001,4331.8,4331.7,4.818]
[1757423189410,0.02420001,4331.8,4331.7,8.871]
[1757423189632,4.58060917,4331.8,4331.7,5.87]
[1757423189868,0.71320214,4331.8,4331.7,5.87]
[1757423190092,0.02420001,4331.8,4331.7,5.87]
[1757423190233,0.02420001,4331.8,4331.7,8.916]
[1757423190438,0.02420001,4331.8,4331.7,10.76284996]
[1757423190670,0.02420001,4331.8,4331.7,8.918]
[1757423191072,0.02420001,4331.8,4331.7,8.872]
[1757423191304,5.12916517,4331.8,4331.7,5.872]
[1757423192135,2.56606517,4331.8,4331.7,5.872]
[1757423192874,2.56606517,4331.8,4331.7,5.876]
[1757423193298,5.80626517,4331.8,4331.7,5.873]
[1757423193674,5.80626517,4331.8,4331.7,1.772]
[1757423193971,5.80626517,4331.8,4331.7,5.872]
[1757423194577,5.80626517,4331.8,4331.7,5.869]
[1757423194779,5.80626517,4331.8,4331.7,1.772]
[1757423194981,0.792,4331.2,4329.8,0.025]
[1757423195154,0.1152,4330.1,4329.8,0.025]
[1757423195486,0.1152,4330.1,4329.9,0.035]
[1757423195686,2.30946882,4330.0,4329.9,0.035]
[1757423196086,2.30952215,4329.9,4329.8,0.025]
[1757423196247,2.30952215,4329.9,4329.8,7.12]
[1757423196449,0.1152,4330.1,4329.9,3.0]
[1757423196649,1.10207757,4331.1,4329.8,4.12]
[1757423196650,2.30952215,4329.9,4329.8,0.025]
[1757423196974,3.21711061,4329.9,4329.8,4.12]
[1757423197184,3.69121061,4329.9,4329.8,0.025]
[1757423197388,6.45731061,4329.9,4329.8,0.316]
[1757423197558,2.30952215,4329.9,4329.8,0.316]
[1757423197765,2.78362215,4329.9,4329.8,0.316]
[1757423198194,4.75772215,4329.9,4329.8,4.119]
[1757423198901,5.54972215,4329.9,4329.8,0.025]
[1757423199110,5.54972215,4329.9,4329.8,4.119]
[1757423199303,6.33563645,4329.9,4329.8,4.119]
[1757423199801,6.33563645,4329.9,4329.8,0.025]
[1757423200607,6.33563645,4329.9,4329.8,1e-08]
[1757423200905,2.31020454,4328.7,4328.3,0.1152]
[1757423201208,2.42526195,4328.9,4328.4,1.772]
[1757423201508,2.31026914,4328.5,4328.4,1.772]
[1757423201707,4.75846914,4328.5,4328.4,1.772]
[1757423201906,5.55046914,4328.5,4328.4,5.86]
[1757423202094,0.1152,4328.4,4328.2,1.772]
[1757423202298,2.78447589,4328.3,4328.2,1.772]
[1757423202601,2.78447589,4328.3,4328.2,5.86]
[1757423202802,2.78447589,4328.3,4328.2,5.859]
[1757423202971,2.78447589,4328.3,4328.2,1.772]
[1757423203174,2.78447589,4328.3,4328.2,5.858]
[1757423203375,4.45787589,4328.3,4328.2,5.858]
[1757423203691,2.31037589,4328.3,4328.2,5.858]
[1757423204205,6.02416334,4328.3,4328.2,4.085]
[1757423204416,3.10248265,4328.1,4328.0,1.772]
[1757423204603,3.10248265,4328.1,4328.0,5.857]
[1757423204971,2.31048265,4328.1,4328.0,5.857]
[1757423205415,0.4741,4328.7,4328.0,5.903]
[1757423205575,0.1152,4328.2,4328.1,3.0]
[1757423205778,2.31048265,4328.1,4328.0,1.772]
[1757423206011,2.31048265,4328.1,4328.0,8.857]
[1757423206686,0.4741,4328.9,4328.0,8.857]
[1757423206687,2.1475,4329.4,4328.1,3.0]
[1757423206890,2.42539588,4328.7,4328.1,3.0]
[1757423207109,2.31021577,4328.6,4328.1,3.0]
[1757423207411,2.31032252,4328.4,4328.3,3.0]
[1757423207977,2.31032252,4328.4,4328.0,1.772]
[1757423208181,2.30989156,4329.3,4328.0,1.772]
[1757423208182,1.6734,4329.4,4328.3,0.046]
[1757423208415,0.4741,4329.5,4328.3,0.046]
[1757423208618,2.31020546,4328.7,4328.3,0.046]
[1757423208925,2.31023554,4328.6,4328.3,0.046]
[1757423209128,2.30978888,4329.4,4328.3,0.046]
[1757423209294,2.31024129,4328.6,4328.3,0.046]
[1757423209500,2.31026973,4328.5,4328.4,7.088]
[1757423210130,2.31048265,4328.1,4328.0,1.772]
[1757423210292,2.31064282,4327.8,4327.7,1.772]
[1757423210491,4.75884282,4327.8,4327.7,8.859]
[1757423210687,4.75884282,4327.8,4327.7,5.859]
[1757423210893,3.98404282,4327.8,4327.7,1.772]
[1757423211184,2.31064282,4327.8,4327.7,5.859]
[1757423211620,2.31064282,4327.8,4327.7,8.859]
[1757423212158,2.31064282,4327.8,4327.7,4.772]
[1757423212429,2.31064282,4327.8,4327.7,8.859]
[1757423213964,1.6734,4328.4,4327.7,8.859]
[1757423214239,0.4741,4328.3,4327.7,1.772]
[1757423214444,2.31064282,4327.8,4327.7,1.772]
[1757423214749,2.31032721,4328.4,4327.8,33.0]
[1757423215048,2.31032721,4328.4,4328.3,0.046]
[1757423215049,2.31032252,4328.4,4328.3,0.046]
[1757423215245,2.31032252,4328.4,4328.3,7.13]
[1757423215605,2.31016321,4328.7,4328.3,7.13]
[1757423215846,2.31032252,4328.4,4328.3,3.046]
[1757423216051,0.4751,4329.8,4328.4,3.0]
[1757423216363,2.30985885,4329.3,4328.5,41.772]
[1757423216517,0.001,4329.8,4329.2,0.046]
[1757423216711,0.001,4329.8,4329.4,3.0]
[1757423216942,0.001,4329.8,4329.6,3.0]
[1757423217107,0.001,4329.8,4329.7,7.129]
[1757423217309,0.001,4329.8,4329.7,39.36750307]
[1757423217510,0.001,4329.8,4329.7,33.046]
[1757423217711,0.001,4329.8,4329.7,37.13]
[1757423217910,0.001,4329.8,4329.7,37.2452]
[1757423218158,0.001,4329.8,4329.7,39.09290307]
[1757423218360,0.001,4329.8,4329.7,37.2452]
[1757423218539,0.001,4329.8,4329.7,33.046]
[1757423218710,0.001,4329.8,4329.7,37.2452]
[1757423218913,0.001,4329.8,4329.7,39.48370307]
[1757423219140,0.001,4329.8,4329.7,37.2452]
[1757423219554,0.001,4329.8,4329.7,33.1612]
[1757423219919,0.001,4329.8,4329.7,37.2412]
[1757423220355,0.001,4329.8,4329.7,3.0]
[1757423220515,0.001,4329.8,4329.7,37.2412]
[1757423220852,0.001,4329.8,4329.7,39.47970307]
[1757423221056,0.1152,4331.6,4330.5,1.84735804]
[1757423221266,0.1152,4331.6,4330.7,4.84727642]
[1757423221413,2.42381898,4331.6,4330.7,38.5834]
[1757423221618,0.1152,4331.6,4330.7,40.54587642]
[1757423221816,0.001,4332.1,4330.7,40.93567642]
[1757423222045,0.001,4332.1,4330.7,43.60040532]
[1757423222738,0.001,4332.1,4330.7,43.24167642]
[1757423223133,0.001,4332.1,4330.7,47.32367642]
[1757423223741,0.001,4332.1,4330.7,47.32267642]
[1757423224120,2.33275298,4331.8,4330.7,42.73667642]
[1757423224348,0.4409,4331.5,4330.7,38.539]
[1757423224550,0.4409,4331.5,4330.7,42.6624]
[1757423224723,0.02420001,4331.8,4330.7,42.6624]
[1757423224929,0.02420001,4331.8,4330.7,44.53737642]
[1757423225144,0.02420001,4331.8,4330.7,44.89947642]
[1757423225358,0.02420001,4331.8,4330.7,43.12647642]
[1757423225524,0.02420001,4331.8,4330.7,47.20747642]
[1757423227344,0.02420001,4331.8,4330.7,47.20547642]
[1757423227518,0.02420001,4331.8,4330.7,47.20347642]
[1757423227919,0.02420001,4331.8,4330.7,47.20247642]
[1757423228656,0.02420001,4331.8,4331.0,1.84711556]
[1757423228855,0.02420001,4331.8,4331.5,1.84692836]
[1757423229030,0.02420001,4331.8,4331.6,31.771]
[1757423229031,2.1765,4331.7,4331.6,31.771]
[1757423229358,5.00243245,4331.7,4331.6,5.85]
[1757423229557,2.30899737,4330.9,4330.7,5.539]
[1757423229762,2.30885891,4331.2,4330.8,35.852]
[1757423229962,0.2973,4330.9,4330.8,5.852]
[1757423230257,0.22007,4331.7,4330.8,8.852]
[1757423230458,0.4409,4331.5,4331.0,3.0]
[1757423230666,0.2973,4331.1,4330.8,4.771]
[1757423230960,2.1765,4331.0,4330.9,3.0]
[1757423231278,4.78273558,4331.0,4330.9,3.0]
[1757423231558,4.78273558,4331.0,4330.9,7.08]
[1757423231763,4.78273558,4331.0,4330.9,3.0]
[1757423231934,4.78273558,4331.0,4330.9,7.08]
[1757423232461,2.4738,4331.0,4330.9,7.079]
[1757423232625,0.02420001,4331.8,4331.0,3.0]
[1757423232825,2.1765,4331.6,4331.2,3.0]
[1757423233022,0.2973,4331.3,4330.8,4.771]
[1757423233237,2.30893558,4331.0,4330.9,7.077]
[1757423233444,2.60623558,4331.0,4330.9,7.077]
[1757423233731,2.4738,4331.0,4330.9,7.077]
[1757423233951,4.78273558,4331.0,4330.9,7.077]
[1757423234754,0.1152,4331.2,4331.0,3.0]
[1757423234937,2.30873144,4331.4,4331.2,3.0]
[1757423235139,0.1152,4331.6,4331.3,7.075]
[1757423235344,0.1152,4331.6,4331.4,4.075]
[1757423235566,0.1152,4331.6,4331.5,4.074]
[1757423235767,0.4409,4331.6,4331.5,4.074]
[1757423235972,2.74951575,4331.6,4331.5,4.074]
[1757423236131,4.78241575,4331.6,4331.5,4.074]
[1757423236465,2.4738,4331.6,4331.5,7.074]
[1757423236665,0.02420001,4331.8,4331.6,3.0]
[1757423236865,0.02420001,4331.8,4331.7,20.71293558]
[1757423237173,0.02420001,4331.8,4331.7,40.73424996]
[1757423237977,0.02420001,4331.8,4331.7,43.03924996]
[1757423238735,0.02420001,4331.8,4331.7,43.70437886]
[1757423238930,0.02420001,4331.8,4331.7,43.73207886]
[1757423239210,0.02420001,4331.8,4331.7,39.66007886]
[1757423239409,0.02420001,4331.8,4331.7,43.73707886]
[1757423239620,0.02420001,4331.8,4331.7,37.7855289]
[1757423239804,0.02420001,4331.8,4331.7,41.151]
[1757423239987,0.02420001,4331.8,4331.7,38.846]
[1757423240187,0.02420001,4331.8,4331.7,38.847]
[1757423240712,0.02420001,4331.8,4331.7,31.771]
[1757423240713,0.76240001,4331.8,4331.7,31.771]
[1757423240915,4.80570917,4331.8,4331.7,31.296]
[1757423241221,6.3092235,4331.8,4331.7,5.848]
[1757423241579,6.3092235,4331.8,4331.7,5.847]
[1757423242223,2.30941548,4330.1,4330.0,1.771]
[1757423242395,2.30941548,4330.1,4329.8,0.025]
[1757423242396,3.10152215,4329.9,4329.8,0.025]
[1757423242587,3.10162884,4329.7,4329.6,0.002]
[1757423242786,4.01923861,4329.7,4329.6,0.002]
[1757423243117,6.19573861,4329.7,4329.6,0.002]
[1757423243680,6.19573861,4329.7,4329.6,4.103]
[1757423244323,4.78342884,4329.7,4329.6,4.103]
[1757423245927,2.30962884,4329.7,4329.6,7.103]
[1757423246116,1.7356,4330.3,4329.6,7.103]
[1757423246313,2.30936215,4330.2,4329.6,7.103]
[1757423246486,2.75011877,4330.5,4329.6,7.103]
[1757423246819,2.42451742,4330.3,4329.6,7.2182]
[1757423247181,0.1152,4330.3,4329.6,7.2182]
[1757423247540,0.1152,4330.5,4329.8,3.1152]
[1757423247704,2.30926065,4330.4,4330.0,3.0]
[1757423248031,2.30926065,4330.4,4330.1,4.095]
[1757423248244,2.30933098,4330.3,4330.1,4.095]
[1757423248588,2.30933098,4330.3,4330.2,4.094]
[1757423249036,0.1152,4330.5,4330.2,4.094]
[1757423249236,0.1152,4330.5,4330.3,4.771]
[1757423249403,0.1152,4330.5,4330.4,7.092]
[1757423249612,0.025,4330.8,4330.5,43.0]
[1757423249945,0.025,4330.8,4330.6,34.2052]
[1757423250088,0.025,4330.8,4330.7,33.0]
[1757423250290,0.025,4330.8,4330.7,3.2857]
[1757423250529,0.025,4330.8,4330.7,13.2857]
[1757423250831,0.025,4330.8,4330.7,37.69020532]
[1757423251029,0.025,4330.8,4330.7,37.80540532]
[1757423251228,0.025,4330.8,4330.7,40.11140532]
[1757423251630,0.025,4330.8,4330.7,44.20140532]
[1757423252330,0.025,4330.8,4330.7,44.87820532]
[1757423252518,0.025,4330.8,4330.7,44.99340532]
[1757423252715,0.025,4330.8,4330.7,51.63740532]
[1757423253095,1e-08,4330.8,4330.7,51.27867642]
[1757423253294,1e-08,4330.8,4330.7,51.87612444]
[1757423253942,1e-08,4330.8,4330.7,51.63440532]
[1757423255040,1e-08,4330.8,4330.7,51.87312444]
[1757423255446,0.001,4332.6,4332.5,1.84650894]
[1757423255630,0.001,4332.6,4332.5,48.65770894]
[1757423255941,0.001,4332.6,4332.5,51.12870894]
[1757423258238,0.001,4332.6,4332.5,51.48743784]
[1757423258441,0.001,4332.6,4332.5,51.48143784]
[1757423258635,0.001,4332.6,4332.5,44.88640894]
[1757423258954,0.001,4332.6,4332.5,48.96440894]
[1757423260621,0.7363,4332.6,4332.5,41.381]
[1757423260837,0.001,4332.6,4332.5,41.381]
[1757423261016,0.001,4332.6,4332.5,46.22750894]
[1757423261454,0.001,4332.6,4332.5,46.54120894]
[1757423261754,0.001,4332.6,4332.5,51.36223784]
[1757423262454,0.001,4332.6,4332.5,49.20493784]
[1757423263432,0.001,4332.6,4332.5,45.13093784]
[1757423263648,0.001,4332.6,4332.5,49.21593784]
[1757423263848,0.001,4332.6,4332.5,48.54150894]
[1757423264055,0.001,4332.6,4332.5,44.45850894]
[1757423264264,0.001,4332.6,4332.5,39.612]
[1757423264457,2.3957,4332.6,4332.5,41.388]
[1757423264662,2.3957,4332.6,4332.5,11.39]
[1757423265158,2.3957,4332.6,4332.5,14.39]
[1757423265790,2.3957,4332.6,4332.5,16.23650894]
[1757423266264,0.7363,4332.6,4332.5,16.23650894]
[1757423266652,0.001,4332.6,4332.5,16.23650894]
[1757423266856,0.001,4332.6,4332.5,46.90893784]
[1757423267046,0.0002,4332.6,4332.5,49.21393784]
[1757423267246,0.0002,4332.6,4332.5,48.54150894]
[1757423267856,0.0002,4332.6,4332.5,44.45850894]
[1757423268078,0.0002,4332.6,4332.5,48.53850894]
[1757423269417,0.0002,4332.6,4332.5,48.53750894]
[1757423270812,0.0002,4332.6,4332.5,49.32513784]
[1757423271566,0.0002,4332.6,4332.5,52.27443784]
[1757423272611,0.0002,4332.6,4332.5,52.27643784]
[1757423272816,0.0002,4332.6,4332.5,15.68140894]
[1757423273113,0.0002,4332.6,4332.5,14.88940894]
[1757423273412,0.0002,4332.6,4332.5,48.96140894]
[1757423273820,0.0002,4332.6,4332.5,49.32013784]
[1757423274018,0.0002,4332.6,4332.5,45.24813784]
[1757423274221,0.0002,4332.6,4332.5,52.26943784]
[1757423275582,0.0002,4332.6,4332.5,50.11013784]
[1757423276605,0.0002,4332.6,4332.5,46.04013784]
[1757423276805,0.0002,4332.6,4332.5,50.10613784]
[1757423277246,0.0002,4332.6,4332.5,50.56283784]
[1757423278149,0.0002,4332.6,4332.5,50.10613784]
[1757423278308,0.0002,4332.6,4332.5,46.04013784]
[1757423278509,0.2861,4332.6,4332.5,44.46050894]
[1757423278745,1.9455,4332.6,4332.5,48.52250894]
[1757423278908,2.3949,4332.6,4332.5,48.52250894]
[1757423279110,0.0002,4332.6,4332.5,48.52250894]
[1757423279425,0.2861,4332.6,4332.5,48.52250894]
[1757423279750,0.0002,4332.6,4332.5,48.52250894]
[1757423280050,2.3949,4332.6,4332.5,39.614]
[1757423280249,2.63689,4332.6,4332.5,11.375]
[1757423280407,2.63689,4332.6,4332.5,14.375]
[1757423280608,2.3949,4332.6,4332.5,10.309]
[1757423280836,2.3949,4332.6,4332.5,14.372]
[1757423281355,2.3949,4332.6,4332.5,16.21750894]
[1757423281555,2.3949,4332.6,4332.5,14.371]
[1757423281756,0.2861,4332.6,4332.5,16.21750894]
[1757423281904,0.0002,4332.6,4332.5,16.21750894]
[1757423282113,0.7608,4332.6,4332.5,44.371]
[1757423282369,2.415,4332.6,4332.5,14.37]
[1757423283219,0.0002,4332.6,4332.5,46.21650894]
[1757423284149,0.7608,4332.6,4332.5,10.309]
[1757423284353,2.415,4332.6,4332.5,14.37]
[1757423284759,2.415,4332.6,4332.5,10.309]
[1757423284760,4.7230829,4332.6,4332.5,10.309]
[1757423284968,2.88980829,4332.6,4332.0,5.535]
[1757423285266,2.30829624,4332.2,4332.1,5.83]
[1757423285429,4.72309624,4332.2,4332.1,5.83]
[1757423286926,4.72309624,4332.2,4332.1,8.83]
[1757423287521,4.72309601,4332.2,4332.1,8.83]
[1757423287755,5.4262254,4332.2,4332.1,8.83]
[1757423288019,4.72309601,4332.2,4332.1,8.83]
[1757423289061,2.4148,4332.2,4332.1,8.83]
[1757423291060,1.9633,4332.2,4332.1,8.83]
[1757423291761,2.30829355,4332.6,4332.1,8.9452]
[1757423291926,1.6542,4332.5,4332.1,8.9452]
[1757423292122,1.6542,4332.4,4332.1,8.9452]
[1757423292327,0.3091,4332.2,4332.1,8.9452]
[1757423292734,0.3091,4332.2,4332.1,8.9332]
[1757423292935,0.3091,4332.2,4332.1,4.8852]
[1757423293136,4.72229601,4332.2,4332.1,8.9322]
[1757423293464,5.4253449,4332.2,4332.1,8.819]
[1757423294966,3.11704889,4332.2,4332.1,8.819]
[1757423295173,0.0002,4332.6,4332.2,3.0]
[1757423295380,2.30830725,4332.6,4332.3,4.047]
[1757423295732,1.6544,4332.6,4332.4,3.0]
[1757423295958,1.6544,4332.6,4332.5,7.045]
[1757423296154,4.2715829,4332.6,4332.5,7.045]
[1757423296639,4.7230829,4332.6,4332.5,7.045]
[1757423296884,1.9635,4332.6,4332.5,7.045]
[1757423297350,4.2715829,4332.6,4332.5,7.045]
[1757423297555,4.7230829,4332.6,4332.5,7.045]
[1757423298060,4.7230829,4332.6,4332.5,3.0]
[1757423298260,4.7230829,4332.6,4332.5,7.041]
[1757423298446,5.42868995,4332.6,4332.5,7.041]
[1757423299476,5.42868995,4332.6,4332.5,7.04]
[1757423299650,5.42868995,4332.6,4332.5,7.037]
[1757423300162,3.12060705,4332.6,4332.5,7.037]
[1757423300473,5.42868995,4332.6,4332.5,7.037]
[1757423300882,5.42868995,4332.6,4332.5,4.037]
[1757423301080,5.42868995,4332.6,4332.5,4.035]
[1757423301779,2.30824273,4332.3,4332.1,1.772]
[1757423301981,2.30829601,4332.2,4332.1,1.772]
[1757423302144,4.72309601,4332.2,4332.1,1.772]
[1757423302348,4.72309601,4332.2,4332.1,5.806]
[1757423304388,2.30824538,4332.3,4332.1,5.806]
[1757423304594,2.30829601,4332.2,4332.1,5.806]
[1757423305143,2.61739601,4332.2,4332.1,5.806]
[1757423305380,2.30831129,4332.6,4332.1,5.806]
[1757423305583,2.7521916,4332.6,4332.1,5.806]
[1757423305761,2.3081516,4332.5,4332.1,5.806]
[1757423306087,2.30818945,4332.4,4332.2,3.0]
[1757423306292,0.1154,4332.6,4332.1,5.806]
[1757423306293,0.1154,4332.6,4332.4,3.0]
[1757423306589,2.42350174,4332.6,4332.5,4.029]
[1757423307096,2.73260174,4332.6,4332.5,4.029]
[1757423307273,4.38680174,4332.6,4332.5,4.029]
[1757423307681,0.1154,4332.6,4332.5,4.029]
[1757423308198,2.4234829,4332.6,4332.5,4.029]
[1757423308360,2.7325829,4332.6,4332.5,4.029]
[1757423308555,0.1154,4332.6,4332.5,4.025]
[1757423308766,0.0002,4332.6,4332.5,4.3388]
[1757423308981,2.3082829,4332.6,4332.5,4.3388]
[1757423309372,2.3082829,4332.6,4332.5,4.025]
[1757423309593,2.30813618,4332.5,4332.1,1.772]
[1757423309764,2.42762599,4332.6,4332.1,1.772]
[1757423309765,2.2209,4332.4,4332.3,3.0]
[1757423309977,4.72298945,4332.4,4332.3,3.0]
[1757423310183,2.42344273,4332.3,4332.2,4.028]
[1757423310408,3.18451855,4332.3,4332.2,4.028]
[1757423310583,2.42344273,4332.3,4332.2,7.028]
[1757423310980,0.1152,4332.3,4332.2,7.028]
[1757423311181,0.1154,4332.6,4332.3,3.0]
[1757423311494,2.30818945,4332.4,4332.1,1.772]
[1757423311685,2.30814213,4332.5,4332.2,7.031]
[1757423312002,0.001,4332.4,4332.3,3.0]
[1757423312198,0.001,4332.4,4332.3,7.03]
[1757423312512,2.30918945,4332.4,4332.3,7.03]
[1757423312872,0.001,4332.4,4332.3,7.03]
[1757423313117,2.30918945,4332.4,4332.3,7.3303]
[1757423313814,0.001,4332.4,4332.3,7.03]
[1757423315024,0.001,4332.4,4332.3,10.11452308]
[1757423315177,0.001,4332.4,4332.3,7.9092]
[1757423315377,0.001,4332.4,4332.3,7.4455]
[1757423316413,0.001,4332.4,4332.3,7.9092]
[1757423316607,0.001,4332.4,4332.3,9.75579418]
[1757423316914,0.001,4332.4,4332.3,41.75912308]
[1757423319421,0.0002,4332.4,4332.3,41.75912308]
[1757423319772,0.0002,4332.4,4332.3,11.75912308]
[1757423320128,0.0002,4332.4,4332.3,7.8992]
[1757423320415,0.0002,4332.4,4332.3,39.74579418]
[1757423320775,0.0002,4332.4,4332.3,11.74912308]
[1757423321227,0.0002,4332.4,4332.3,40.10152308]
[1757423321809,0.0002,4332.4,4332.3,41.74612308]
[1757423322189,0.0002,4332.4,4332.3,40.10152308]
[1757423323227,0.0002,4332.4,4332.3,41.74612308]
[1757423324418,0.0002,4332.4,4332.3,41.63092308]
[1757423324620,0.0002,4332.4,4332.3,41.27219418]
[1757423325628,0.0002,4332.4,4332.3,37.25519418]
[1757423325808,0.0002,4332.4,4332.3,41.26819418]
[1757423326433,0.0002,4332.4,4332.3,41.62692308]
[1757423326929,0.0002,4332.4,4332.3,37.61392308]
[1757423327134,0.0002,4332.4,4332.3,41.62292308]
[1757423327831,0.0002,4332.4,4332.3,37.61392308]
[1757423327994,0.0002,4332.4,4332.3,39.97832308]
[1757423328195,0.0002,4332.4,4332.3,39.97632308]
[1757423328702,0.0002,4332.4,4332.3,41.62092308]
[1757423329739,0.0002,4332.4,4332.3,42.41292308]
[1757423330032,0.0002,4332.4,4332.3,42.65179973]
[1757423330824,0.0002,4332.4,4332.3,42.41292308]
[1757423332844,0.0002,4332.4,4332.3,35.96932308]
[1757423333045,0.0002,4332.4,4332.3,39.50862308]
[1757423333207,0.0002,4332.4,4332.3,39.50762308]
[1757423333841,0.0002,4332.4,4332.3,39.97132308]
[1757423334211,0.0002,4332.4,4332.3,42.40792308]
[1757423334410,0.0002,4332.4,4332.3,42.52312308]
[1757423335225,0.0002,4332.4,4332.3,40.08552308]
[1757423335913,0.0002,4332.4,4332.3,35.62082308]
[1757423336141,0.0002,4332.4,4332.3,39.62182308]
[1757423336526,0.0002,4332.4,4332.3,40.08552308]
[1757423337224,0.0002,4332.4,4332.3,42.52212308]
[1757423338047,0.0002,4332.4,4332.3,40.87752308]
[1757423338348,0.0002,4332.4,4332.3,40.87652308]
[1757423339052,0.0002,4332.4,4332.3,42.52112308]
[1757423340072,0.0002,4332.4,4332.3,40.87652308]
[1757423340278,0.0002,4332.4,4332.3,42.52112308]
[1757423340640,0.0002,4332.4,4332.3,42.75999973]
[1757423341049,0.001,4332.9,4332.6,0.792]
[1757423341248,0.001,4332.9,4332.8,5.75358109]
[1757423341449,0.001,4332.9,4332.8,36.41260999]
[1757423341656,0.001,4332.9,4332.8,36.88100999]
[1757423342376,0.001,4332.9,4332.8,33.4739289]
[1757423342575,2.4627,4332.9,4332.8,30.0]
[1757423342782,2.4627,4332.9,4332.8,33.992]
[1757423342979,2.4627,4332.9,4332.8,44.37138109]
[1757423343345,2.0206,4332.9,4332.8,44.37138109]
[1757423343966,0.001,4332.9,4332.8,44.73010999]
[1757423344180,0.3057,4332.9,4332.8,44.73010999]
[1757423344666,2.4627,4332.9,4332.8,12.527]
[1757423344884,5.24786953,4332.9,4332.8,5.533]
[1757423345042,2.93994643,4332.9,4332.8,9.526]
[1757423345242,5.24786953,4332.9,4332.8,12.526]
[1757423345443,2.93914643,4332.9,4332.8,12.526]
[1757423347041,5.24706953,4332.9,4332.8,12.526]
[1757423347277,2.93914643,4332.9,4332.8,12.526]
[1757423347896,5.24706953,4332.9,4332.8,8.533]
[1757423348400,5.24706953,4332.9,4332.8,12.523]
[1757423348824,2.30829601,4332.2,4332.1,1.772]
[1757423349100,4.76999601,4332.2,4332.1,8.762]
[1757423349301,5.47781788,4332.2,4332.1,4.772]
[1757423349797,5.47781788,4332.2,4332.1,8.761]
[1757423350381,2.4617,4332.2,4332.1,8.761]
[1757423350893,4.76999601,4332.2,4332.1,8.761]
[1757423351205,2.4617,4332.2,4332.1,8.761]
[1757423351580,4.76999601,4332.2,4332.1,8.761]
[1757423352767,4.76999601,4332.2,4332.1,4.772]
[1757423352967,5.59301579,4332.2,4332.1,8.759]
[1757423355836,5.59301579,4332.2,4332.1,1.772]
[1757423356360,5.59301579,4332.2,4332.1,5.757]
[1757423357203,5.59301579,4332.2,4332.1,1.772]
[1757423357400,6.38501579,4332.2,4332.1,1.772]
[1757423357641,3.10034929,4332.1,4332.0,0.002]
[1757423357837,0.792,4331.9,4331.8,1.798]
[1757423358038,0.792,4331.9,4331.4,0.002]
[1757423358039,3.10066905,4331.5,4331.4,0.002]
[1757423358539,2.30898889,4330.9,4330.8,0.025]
[1757423359058,4.77068889,4330.9,4330.8,0.025]
[1757423359350,5.47864702,4330.9,4330.8,0.025]
[1757423359557,5.47864702,4330.9,4330.8,4.014]
[1757423360267,5.47864702,4330.9,4330.8,7.014]
[1757423360847,5.47864702,4330.9,4330.8,3.025]
[1757423361147,5.47864702,4330.9,4330.8,0.025]
[1757423361351,5.47864702,4330.9,4330.8,4.013]
[1757423361757,6.27064702,4330.9,4330.8,4.013]
[1757423362047,6.27064702,4330.9,4330.8,1e-08]
[1757423362255,6.27064702,4330.9,4330.8,3.98800001]
[1757423363751,5.82854702,4330.9,4330.8,3.98800001]
[1757423364048,6.27064702,4330.9,4330.8,3.98800001]
[1757423364212,5.82854702,4330.9,4330.8,3.98800001]
[1757423364412,6.27064702,4330.9,4330.8,3.98800001]
[1757423364851,5.82854702,4330.9,4330.8,3.98800001]
[1757423365016,6.27064702,4330.9,4330.8,3.98800001]
[1757423366773,1.01265813,4330.9,4330.8,3.98800001]
[1757423366921,2.61368889,4330.9,4330.8,3.98800001]
[1757423367348,2.30898889,4330.9,4330.8,3.98800001]
[1757423367755,2.61368889,4330.9,4330.8,3.98800001]
[1757423368157,4.32858889,4330.9,4330.8,3.98800001]
[1757423368458,4.32858889,4330.9,4330.8,3.98200001]
[1757423368655,4.99233875,4330.9,4330.8,3.98400001]
[1757423368831,3.27743875,4330.9,4330.8,3.98400001]
[1757423369022,5.78433875,4330.9,4330.8,0.00200001]
[1757423369229,5.78433875,4330.9,4330.8,3.98300001]
[1757423369230,6.22643875,4330.9,4330.8,3.98300001]
[1757423369560,5.78433875,4330.9,4330.8,3.98300001]
[1757423369854,2.97273875,4330.9,4330.8,4.29150001]
[1757423370057,3.27743875,4330.9,4330.8,3.98300001]
[1757423370855,4.99233875,4330.9,4330.8,0.00200001]
[1757423371058,5.43443875,4330.9,4330.8,3.98300001]
[1757423371765,5.43443875,4330.9,4330.8,0.00200001]
[1757423371766,3.27663875,4330.9,4330.8,0.00200001]
[1757423371939,3.27663875,4330.9,4330.8,3.98300001]
[1757423372862,5.42323875,4330.9,4330.8,3.98300001]
[1757423373560,5.42323875,4330.9,4330.8,0.00200001]
[1757423373753,5.42323875,4330.9,4330.8,3.98200001]
[1757423374355,4.96973875,4330.9,4330.8,3.98200001]
[1757423374962,3.27663875,4330.9,4330.8,3.98200001]
[1757423375281,2.30818889,4330.9,4330.8,3.98200001]
[1757423375448,2.30818889,4330.9,4330.8,4.28620001]
[1757423375654,0.1152,4330.9,4330.8,4.73320001]
[1757423376055,2.42418889,4330.9,4330.8,4.73320001]
[1757423377490,2.42418889,4330.9,4330.8,7.73320001]
[1757423377491,0.1152,4330.9,4330.8,7.73320001]
[1757423377714,2.42418889,4330.9,4330.8,7.73320001]
[1757423377989,2.42418889,4330.9,4330.8,7.27920001]
[1757423380999,0.1152,4330.9,4330.8,7.27920001]
[1757423381158,2.42418889,4330.9,4330.8,7.72620001]
[1757423383008,2.1466,4331.9,4330.8,7.72620001]
[1757423383009,1.6931,4331.9,4330.8,7.72620001]